Cogmind - Beta 14 @@@ ROGUE MODE // 2025.01.16 @ 21:13:33 Player: Pixel Pro Result: Destroyed by G-34 Mercenary with Small Laser Performance ------------- Evolutions (0) 0 Regions Visited (1) 200 Robots Destroyed (20) 100 Value Destroyed (410) 410 Prototype IDs (0) 0 Alien Tech Used (0) 0 Bonus (0) 0 TOTAL SCORE: 710 Bonus ------- None Cogmind --------- Core Integrity 0/250 Matter 178/300 Energy 96/100 System Corruption 0% Temperature Cool (6) Movement Walking (190) Ox1 Location -10/Materials Parts ------- > --- POWER (1) -------- (None) > --- PROPULSION (2) --- Aluminum Leg Aluminum Leg > --- UTILITY (2) ------ Medium Storage Unit Signal Interpreter > --- WEAPON (2) ------- Small Laser Assault Rifle > --- INVENTORY (10) --- Small Storage Unit Large Battery (200) Peak State ------------ > --- POWER ------------ Light Ion Engine > --- PROPULSION ------- Aluminum Leg Aluminum Leg > --- UTILITY ---------- Small Storage Unit Large Matter Pod > --- WEAPON ----------- Medium Laser Light Assault Rifle > --- INVENTORY -------- Light Ion Engine Light Treads Light Treads Compact Wheel Compact Wheel Assault Rifle [Rating: 7] Favorites ----------- Power Light Ion Engine Engine Light Ion Engine Propulsion Aluminum Leg Treads Light Treads Leg Aluminum Leg Wheel Compact Wheel Utility Small Storage Unit Storage Small Storage Unit Processor Signal Interpreter Weapon Medium Laser Energy Gun Medium Laser Ballistic Gun Light Assault Rifle Launcher Grenade Launcher Build | -11 -10 ------- Run | Yrd Mat Slots Evolved . | . . Power . | . . Propulsion . | . . Utility . | . . Weapon . | . . Parts Attached 30 | 14 16 Power 3 | 1 2 Engine 3 | 1 2 Core . | . . Reactor . | . . Propulsion 15 | 10 5 Treads 5 | 5 . Leg 7 | 4 3 Wheel 3 | 1 2 Hover . | . . Flight . | . . Utility 6 | 1 5 Device . | . . Storage 5 | 1 4 Processor 1 | . 1 Hackware . | . . Protection . | . . Artifact . | . . Weapon 6 | 2 4 Energy Gun 2 | 1 1 Energy Cannon . | . . Ballistic Gun 3 | 1 2 Ballistic Cannon . | . . Launcher 1 | . 1 Special Weapon . | . . Impact Weapon . | . . Slashing Weapon . | . . Piercing Weapon . | . . Special Melee Weapon . | . . Unidentified Prototypes . | . . Parts Lost 6 | . 6 Power 2 | . 2 Propulsion 2 | . 2 Utility . | . . Weapon 2 | . 2 Highest Loss Streak 6 | . 6 To Critical Strikes . | . . Average Slot Usage (%) 87 | . 87 Engine 5 | . 5 Leg 24 | . 24 Wheel 2 | . 2 Storage 20 | . 20 Processor 7 | . 7 Energy Gun 12 | . 12 Ballistic Gun 9 | . 9 Launcher 4 | . 4 Peak Build Rating 7 | 6 7 Average Rating 5 | 4 6 On Entrance 3 | . 6 Naked Turns . | . . Heaviest Build 17 | 11 17 Greatest Support 40 | 40 32 Greatest Overweight (x) 2 | 2 1 Average Overweight (x) . | . . Largest Inventory Capacity 25 | 8 25 Average Capacity 8 | 7 9 Most Carried 8 | 8 7 Average Carried 4 | 5 3 Final Capacity 10 | 8 10 Final Carried 6 | 6 2 Class Distribution -------------------- 100% | Mutant Dominant Class ---------------- Mutant | -10/Materials Resources | -11 -10 ----------- Run | Yrd Mat Matter Collected 516 | 329 187 Remotely . | . . Salvage Created 444 | 90 354 Parts 35 | 3 32 Haulers Intercepted . | . . Recyclers Shooed . | . . Parts Field Recycled . | . . Retrieved Matter . | . . Parts Self-Destructed . | . . Prevented . | . . Kills | -11 -10 ------- Run | Yrd Mat Combat Hostiles Destroyed 11 | . 11 Guns 8 | . 8 AOE 3 | . 3 Classes Destroyed 7 | 2 5 Worker 1 | 1 . Builder 4 | . 4 Recycler 1 | 1 . Operator 1 | . 1 Watcher 2 | . 2 Swarmer 3 | . 3 Grunt 8 | . 8 Best Kill Streak 9 | 1 9 Combat Bots Only 3 | . 3 Max Kills in Single Turn 5 | 1 5 Gunslinging 1 | . 1 Exploded 1 | . 1 Melee . | . . Uniques/NPCs Destroyed . | . . Combat | -11 -10 -------- Run | Yrd Mat Hostile Shots Fired 133 | . 133 Missed 51 | . 51 Damage Taken 1008 | . 1008 Core 258 | . 258 Absorbed by Shields . | . . Regen/Repaired (Parts) 56 | . 56 Core Remaining (%) 100 | 100 . Volleys Fired 61 | 8 53 Largest 2 | 2 2 Hottest 80 | 70 80 Shots Fired 90 | 16 74 Gun 80 | 16 64 Cannon . | . . Launcher 10 | . 10 Special . | . . Kinetic 42 | 8 34 Thermal 38 | 8 30 Explosive 10 | . 10 Electromagnetic . | . . Robot Hit Streak 11 | 4 11 Robot Miss Streak 6 | 4 6 Penetration Max . | . . Secondary Targets 2 | . 2 Max Gunslinging Chain 1 | . 1 Shots Hit Robots 46 | 9 37 Core Hits 29 | 4 25 Critical Kills 1 | . 1 Critical Parts Destroyed . | . . Critical Strikes 2 | . 2 Burn 1 | . 1 Destroy 1 | . 1 Melee Attacks . | . . Impact . | . . Slashing . | . . Piercing . | . . Sneak Attacks . | . . Combat Hostiles . | . . Follow-up Attacks . | . . Damage Inflicted 1228 | 93 1135 Guns 494 | 93 401 Cannons . | . . Explosions 734 | . 734 Melee . | . . Ramming . | . . Kinetic 288 | 32 256 Thermal 597 | 61 536 Explosive 343 | . 343 Electromagnetic . | . . Impact . | . . Slashing . | . . Piercing . | . . Highest Corruption . | . . Average Corruption . | . . Corruption Purged . | . . Corruption Blocked . | . . Overload Shots . | . . Overflow Damage 124 | . 124 Projectiles . | . . Explosions 124 | . 124 Melee . | . . Knockbacks . | . . Impact . | . . Kinetic . | . . Secondary . | . . Self-Inflicted Damage 37 | . 37 Shots 1 | . 1 Rammed . | . . Targets Rammed . | . . Kicked . | . . Crushed . | . . Highest Temperature 270 | 50 270 Average Temperature 92 | 25 113 Received Heat Transfer 486 | . 486 Siege Activations . | . . Robots Corrupted . | . . Combat Hostiles . | . . Parts Fried . | . . Impact Corruptions . | . . Robots Melted . | . . Combat Hostiles . | . . Parts Melted 2 | 1 1 Heat Transferred 943 | 185 758 Parts Sabotaged . | . . Parts Stolen . | . . Parts Stripped . | . . Power Chain Reactions . | . . Alert | -11 -10 ------- Run | Yrd Mat Peak Influence 217 | 10 217 Initial 6 | . 6 Average 91 | 2 123 Maximum Alert Level 1 | . 1 Low Security (%) 84 | 100 79 Level 1 15 | . 20 Level 2 . | . . Level 3 . | . . Level 4 . | . . Level 5 . | . . High Security . | . . Max Security . | . . Squads Dispatched 3 | . 3 Investigation 2 | . 2 Extermination . | . . Reinforcement 1 | . 1 Assault . | . . Garrison . | . . Intercept . | . . Searches Triggered . | . . Construction Impeded . | . . Haulers Reinforced . | . . Active Scanning Responses . | . . Cargo Convoy Interrupts . | . . Stealth | -11 -10 --------- Run | Yrd Mat Distress Signals . | . . Communications Jammed . | . . Distress Signals . | . . Times Spotted 17 | . 17 Peak Tracking Total 4 | . 4 Tactical Retreats . | . . Traps | -11 -10 ------- Run | Yrd Mat Traps Triggered 2 | . 2 Indirectly . | . . Trap Hack Attempts . | . . Triggered . | . . Disarmed . | . . Reprogrammed . | . . Reused . | . . Traps Extracted . | . . Installed . | . . Triggered . | . . Machines | -11 -10 ---------- Run | Yrd Mat Machines Disabled 2 | . 2 Max in Single Turn 2 | . 2 Machines Repaired . | . . Machines Dismantled . | . . Machines Sabotaged . | . . Overloaded Fab Kills . | . . Hacking | -11 -10 --------- Run | Yrd Mat Machines Accessed 3 | . 3 Terminals 2 | . 2 Fabricators . | . . Repair Stations 1 | . 1 Recycling Units . | . . Scanalyzers . | . . Garrison Access . | . . Total Hacks 18 | . 18 Successful 13 | . 13 Failed 5 | . 5 Catastrophic . | . . Database Lockouts . | . . Manual . | . . Terminals 12 | . 12 Fabricators . | . . Repair Stations 6 | . 6 Recycling Units . | . . Scanalyzers . | . . Garrison Access . | . . Terminal Hacks 8 | . 8 Record 3 | . 3 Alert Level 3 | . 3 Patrol Status 1 | . 1 Zone Layout 1 | . 1 Fabricator Hacks . | . . Repair Station Hacks 5 | . 5 Scan Component 3 | . 3 Repair 2 | . 2 Recycling Unit Hacks . | . . Scanalyzer . | . . Garrison Access Hacks . | . . Unauthorized Hacks . | . . Terminals . | . . Fabricators . | . . Repair Stations . | . . Recycling Units . | . . Scanalyzers . | . . Garrison Access . | . . Data Cores Recovered . | . . Used . | . . Hacking Detections 3 | . 3 Full Trace Events 2 | . 2 Feedback Events . | . . Feedback Blocked . | . . Robot Schematics Acquired . | . . Robots Built . | . . Authchips . | . . Time . | . . Total Robot Build Rating . | . . Part Schematics Acquired . | . . Parts Built . | . . Authchips . | . . Time . | . . Total Part Build Rating . | . . Parts Repaired 2 | . 2 Time 52 | . 52 Parts Recycled . | . . Recycled Matter . | . . Retrieved Matter . | . . Retrieved Components . | . . Parts Scanalyzed . | . . Part Schematics Acquired . | . . Parts Damaged . | . . Bothacking | -11 -10 ------------ Run | Yrd Mat Used RIF Installer . | . . Robots Hacked . | . . Non-combat . | . . Combat . | . . Robot Hacks Applied . | . . Relay Couplers Released . | . . Fabnet Peak Effective % . | . . Robots Rewired . | . . Allies Hacked . | . . Hacks Repelled . | . . Allies | -11 -10 -------- Run | Yrd Mat Total Allies . | . . Largest Group . | . . Highest-Rated Group . | . . Highest-Rated Ally . | . . Total Orders . | . . Ally Attacks . | . . Total Damage . | . . Kills . | . . Allies Corrupted . | . . Allies Melted . | . . Intel | -11 -10 ------- Run | Yrd Mat Robot Analysis Total . | . . Derelict Logs Recovered . | . . Drone Launches . | . . Drone Recoveries . | . . Exploration | -11 -10 ------------- Run | Yrd Mat Turns Passed 905 | 241 664 Spaces Moved 560 | 176 384 Core 103 | 103 . Treads 19 | 19 . Legs 430 | 54 376 Wheels 8 | . 8 Hover . | . . Flight . | . . Fastest Speed 50 | 50 100 Average Speed 115 | 91 126 Slowest Speed 190 | 160 190 Overloaded Moves . | . . Propulsion Burnouts . | . . Robots Hopped . | . . Cave-ins Triggered . | . . Exploration Rate (%) 27 | 11 44 Regions Visited 1 Branch Regions . Pre-discovered Areas . | . . Known Exits Taken . | . . Unknown Exits Taken 1 | 1 . Scrap Searched . | . . Spaces Dug . | . . Terrain Destroyed 36 | . 36 Melee . | . . Projectile . | . . AOE 36 | . 36 Terrain Rammed . | . . Walls Destroyed . | . . Machines Disabled . | . . Actions | -11 -10 --------- Run | Yrd Mat Total 732 | 236 496 Wait 50 | 31 19 Move 559 | 175 384 Hop . | . . Pick Up 22 | 8 14 Fast Attach 4 | 4 . Attach 9 | 2 7 Detach . | . . Swap 17 | 8 9 Drop 10 | . 10 Fire 61 | 8 53 Melee . | . . Ram . | . . Kick . | . . Crush . | . . Escape Stasis . | . . Rewire . | . . Trap . | . . Miscellaneous . | . . Route ------- -11/Scrapyard -10/Materials (discovered 2 exits: [*Mat] / [*Min]) History --------- Turn | Location | Event 23 | -11/Scrapyard | Discovered new exit (range 16) 242 | -11/Scrapyard | Entered Materials 242 | -10/Materials | Discovered new exit (range 14) 305 | -10/Materials | Build established: Mutant 507 | -10/Materials | Core integrity fell below 50% 524 | -10/Materials | Core integrity fell below 20% 566 | -10/Materials | Lost 6 parts (2p2n2w) 585 | -10/Materials | Discovered new exit (range 13) 838 | -10/Materials | Repaired Aluminum Leg 864 | -10/Materials | Repaired Lgt. Assault Rifle 906 | -10/Materials | Destroyed by G-34 Mercenary with Small Laser Last Messages --------------- Repair station completes Aluminum Leg repairs. >>Repair Cancelling repair: Aluminum Leg. Repairing Lgt. Assault Rifle... ETC: 26 ALERT: Suspicious activity at Repair Station M001. Dispatching Investigation squad. Acquired Aluminum Leg. K-01 Serf collects debris. Repair station completes Lgt. Assault Rifle repairs. K-01 Serf collects debris. K-01 Serf cleans the Purification Channel. [Achievement: Storm Trooper] G-34 Mercenary suffers critical hit (Destroy). G-34 Mercenary destroyed. Switching to secondary target: G-34 Mercenary. Heat Sink melted. G-34 Mercenary destroyed. [Achievement: First Step to Greatness] Map ----- +----------------------------------------------------+ | ???????????????????????????????????????????? | | ???????????????????????????????????????????? | | ???????????????????????????????????????????? | | ???????????????????????????????????????????? | | ???????????????????????????????????????????? | | ???????????????????????????????????????????? | | ???????????????????????????????????????????? | | ???????????????????????????????????????????? | | ???????????????????????????????????????????? | | ???????????????????????????????????????????? | | ???????????????????????????????????????????? | | ???????????????????????????????????????????? | | ???????????????????????????????????????????? | | ???????????????????????????????????????????? | | ???????????????????????????????????????????? | | ???????????????????????????????????????????? | | ??????????????????????????????? ???????????? | | ??????????????"" ???????????? ???????????? | | ???????????"??""???????????? #????????????? | | ??????????? ?? ?########## #????????????? | | ??????????#+##+### #????????????? | | ??????????# #????????????? | | ?########## ^ #????????????? | | ?# ! # #????????????? | | ?# """ # #????????????? | | ?# """ # % [ @ #???????????????????? | | ?# """ # =%! #######?????????????? | | ?# + "=* " # #?????????????? | | ?# # """ """ # ?????????????? | | ?# "[" k """ """ # ! ?????????????? | | ?# "R" # """g """ # ??????????????? | | ?# """ # "" ^"" # ??????????????? | | ?########## """ """ ## ###########????? | | ??????????# "" "" ## # #????? | | ?????????## """ """ ## #=! #????? | | ?????????#T ^" ^" ## #=! #???? | | ?????????## ## # #????" | | ??????????# ## # " #????" | | ??????????# ## # T #??? " | | ??????????# ## # " #??? | | ??????????# "# # #### | | ??????????# ## #####+########## | | ??????????# [ | | ??????????# *= | | ??????????# ! " = [ | | ??????????# ! "" ########## | | ??????????# !! "" # #######? | | ??????????# """ ###??????? | | ??????????# "" ===#????????? | | ??????????# """ ===#????????? | +----------------------------------------------------+ Best States ------------- Heat Dissipation 25 Energy Generation 10 Energy Capacity 125 Matter Stores 297 Matter Capacity 450 Sight Range 16 Terrain Scan Density 10 Evasion (%) 55 Recoil Reduction 2 Item Schematics ----------------- None Robot Schematics ------------------ None Fabricated ------------ Nothing Alien Tech Used ----------------- None Achievements -------------- Crack Shot First Step to Greatness One Hack Too Far Storm Trooper Uninvited Guest Challenges ------------ None Game ------ Seed InertialHoverFlamer Manual? 0 Play Time 00:22:53 Cumulative 1.3 hours Start 2025.01.16 @ 20:55:31 End 2025.01.16 @ 21:13:33 Sessions 1 Manual Loads 0 Difficulty Rogue Special Mode None Game No. 5 Rogue 5 Adventurer 0 Explorer 0 Win Type - Total 0 Types 0/0/0/0/0/0/0/0/0 Lore% 1 Gallery% 4 Achievement% 2 Wizard Run 0 Options --------- Layout 1 ASCII 0 Keyboard 0 Movement Arrows Keybinds 0 Fullscreen 1 Font 24/Smallcaps Map View 50x35 Zoom Use 0% Tactical HUD 0 Map Filters NONE Filters NONE Steam 1 RUN: 182365ed-9aff-433c-aa3e-d8c519f296b3